[Event "*** SCC Grand Prix: Titled Tuesday Blitz"]
[Site "Chess.com"]
[Date "2020.10.06"]
[Round "3"]
[White "smshk35"]
[Black "ChessSkool"]
[Result "1/2-1/2"]
[WhiteElo "2450"]
[BlackElo "2674"]
[TimeControl "180+1"]
[EndTime "10:28:47 PDT"]
[Termination "Game drawn - insufficient material"]

1. e4 {[%clk 0:03:00.9]} 1... c6 {[%clk 0:03:00.6]} 2. d4 {[%clk 0:03:00.4]}
2... d5 {[%clk 0:02:57.9]} 3. e5 {[%clk 0:03:00.7]} 3... c5 {[%clk 0:02:47.5]}
4. dxc5 {[%clk 0:03:01.6]} 4... e6 {[%clk 0:02:47]} 5. a3 {[%clk 0:03:00.6]}
5... Bxc5 {[%clk 0:02:40.9]} 6. Bd3 {[%clk 0:03:00.6]} 6... Ne7 {[%clk
0:02:40.7]} 7. Nf3 {[%clk 0:02:59.4]} 7... Ng6 {[%clk 0:02:40]} 8. b4 {[%clk
0:02:59.2]} 8... Be7 {[%clk 0:02:40]} 9. O-O {[%clk 0:02:57.9]} 9... Nd7 {[%clk
0:02:40.3]} 10. Re1 {[%clk 0:02:54.7]} 10... a5 {[%clk 0:02:37.2]} 11. b5 {[%clk
0:02:49.4]} 11... a4 {[%clk 0:02:37.2]} 12. c4 {[%clk 0:02:43.9]} 12... Nc5
{[%clk 0:02:31.2]} 13. Nc3 {[%clk 0:02:27]} 13... dxc4 {[%clk 0:02:16.3]} 14.
Bxc4 {[%clk 0:02:26.7]} 14... O-O {[%clk 0:02:15.6]} 15. Be3 {[%clk 0:02:18.9]}
15... b6 {[%clk 0:02:13.8]} 16. Bxc5 {[%clk 0:01:59.7]} 16... Bxc5 {[%clk
0:02:13.6]} 17. Ne4 {[%clk 0:01:59.8]} 17... Qe7 {[%clk 0:02:05.8]} 18. Nxc5
{[%clk 0:01:50.5]} 18... Qxc5 {[%clk 0:02:06.7]} 19. Rc1 {[%clk 0:01:50.3]}
19... Qxa3 {[%clk 0:02:05.3]} 20. Re3 {[%clk 0:01:44.3]} 20... Qe7 {[%clk
0:02:02.6]} 21. Nd4 {[%clk 0:01:43.3]} 21... Rd8 {[%clk 0:01:51.6]} 22. Qg4
{[%clk 0:01:11.8]} 22... h5 {[%clk 0:01:31.8]} 23. Qf3 {[%clk 0:01:04.9]} 23...
Bb7 {[%clk 0:01:25.6]} 24. Nc6 {[%clk 0:01:04]} 24... Qg5 {[%clk 0:01:16.6]} 25.
Rce1 {[%clk 0:00:39.8]} 25... Rd7 {[%clk 0:01:13.7]} 26. Qh3 {[%clk 0:00:39]}
26... Nf4 {[%clk 0:00:53.8]} 27. Qf3 {[%clk 0:00:38.8]} 27... Nd5 {[%clk
0:00:45.6]} 28. Bxd5 {[%clk 0:00:35.9]} 28... Rxd5 {[%clk 0:00:45.7]} 29. Qe2
{[%clk 0:00:26.3]} 29... Bxc6 {[%clk 0:00:35.7]} 30. bxc6 {[%clk 0:00:25.5]}
30... Rc5 {[%clk 0:00:36.1]} 31. Rg3 {[%clk 0:00:24.9]} 31... Qh6 {[%clk
0:00:26.1]} 32. Qe4 {[%clk 0:00:21.6]} 32... Rc8 {[%clk 0:00:23.5]} 33. Qxa4
{[%clk 0:00:20.8]} 33... Rxe5 {[%clk 0:00:19.8]} 34. Rd1 {[%clk 0:00:16.3]}
34... Rc5 {[%clk 0:00:17.3]} 35. h4 {[%clk 0:00:14.8]} 35... R5xc6 {[%clk
0:00:16.7]} 36. Qb5 {[%clk 0:00:11.6]} 36... Rc1 {[%clk 0:00:15]} 37. Rxc1
{[%clk 0:00:10.2]} 37... Qxc1+ {[%clk 0:00:15.9]} 38. Kh2 {[%clk 0:00:10.2]}
38... Qc5 {[%clk 0:00:15.6]} 39. Qd7 {[%clk 0:00:10]} 39... g6 {[%clk 0:00:13]}
40. Rg5 {[%clk 0:00:08.7]} 40... Qc7+ {[%clk 0:00:12.7]} 41. Qxc7 {[%clk
0:00:08.8]} 41... Rxc7 {[%clk 0:00:13.6]} 42. Rb5 {[%clk 0:00:09.3]} 42... Rb7
{[%clk 0:00:14.1]} 43. Kg3 {[%clk 0:00:09.9]} 43... Kf8 {[%clk 0:00:14.5]} 44.
Kf4 {[%clk 0:00:10.8]} 44... f6 {[%clk 0:00:13.3]} 45. Rb1 {[%clk 0:00:10.3]}
45... Ke7 {[%clk 0:00:13.4]} 46. Rb5 {[%clk 0:00:10.5]} 46... Kd6 {[%clk
0:00:13.6]} 47. g4 {[%clk 0:00:10.9]} 47... hxg4 {[%clk 0:00:13.3]} 48. Kxg4
{[%clk 0:00:11.3]} 48... Kc6 {[%clk 0:00:12.7]} 49. Rb3 {[%clk 0:00:11.5]} 49...
b5 {[%clk 0:00:12.4]} 50. Rf3 {[%clk 0:00:12.1]} 50... f5+ {[%clk 0:00:06.8]}
51. Kg5 {[%clk 0:00:12.1]} 51... b4 {[%clk 0:00:06.9]} 52. Kxg6 {[%clk 0:00:12]}
52... b3 {[%clk 0:00:07]} 53. Rc3+ {[%clk 0:00:11.8]} 53... Kd5 {[%clk
0:00:07.4]} 54. Rc1 {[%clk 0:00:12.1]} 54... b2 {[%clk 0:00:07.2]} 55. Rb1
{[%clk 0:00:12.5]} 55... Kc4 {[%clk 0:00:07.6]} 56. h5 {[%clk 0:00:13]} 56...
Kc3 {[%clk 0:00:08.2]} 57. h6 {[%clk 0:00:13.5]} 57... f4 {[%clk 0:00:07.9]} 58.
h7 {[%clk 0:00:12.6]} 58... Rb8 {[%clk 0:00:07.3]} 59. Kf6 {[%clk 0:00:11.9]}
59... e5 {[%clk 0:00:06]} 60. Kxe5 {[%clk 0:00:11.3]} 60... Rh8 {[%clk
0:00:05.9]} 61. Kxf4 {[%clk 0:00:10.7]} 61... Kc2 {[%clk 0:00:05.7]} 62. Rxb2+
{[%clk 0:00:10.5]} 62... Kxb2 {[%clk 0:00:06.6]} 63. Kg5 {[%clk 0:00:10.9]}
63... Rxh7 {[%clk 0:00:07.2]} 64. f4 {[%clk 0:00:11.2]} 64... Kc3 {[%clk
0:00:07.9]} 65. f5 {[%clk 0:00:11.7]} 65... Kd4 {[%clk 0:00:08.4]} 66. Kg6
{[%clk 0:00:12.2]} 66... Rh1 {[%clk 0:00:03.5]} 67. f6 {[%clk 0:00:12.7]} 67...
Rg1+ {[%clk 0:00:02.9]} 68. Kh7 {[%clk 0:00:12.6]} 68... Ke5 {[%clk 0:00:02.3]}
69. f7 {[%clk 0:00:13]} 69... Rh1+ {[%clk 0:00:01.7]} 70. Kg8 {[%clk 0:00:13.3]}
70... Rg1+ {[%clk 0:00:02.3]} 71. Kh8 {[%clk 0:00:13.7]} 71... Rf1 {[%clk
0:00:02.6]} 72. Kg8 {[%clk 0:00:14]} 72... Ke6 {[%clk 0:00:02.8]} 73. f8=Q
{[%clk 0:00:14.3]} 73... Rxf8+ {[%clk 0:00:03.6]} 74. Kxf8 {[%clk 0:00:15.2]}
1/2-1/2

[Event "*** SCC Grand Prix: Titled Tuesday Blitz"]
[Site "Chess.com"]
[Date "2020.10.06"]
[Round "3"]
[White "Aleksey_Sorokin"]
[Black "Philosopherrr"]
[Result "1/2-1/2"]
[WhiteElo "2814"]
[BlackElo "2478"]
[TimeControl "180+1"]
[EndTime "10:29:10 PDT"]
[Termination "Game drawn - insufficient material"]

1. d4 {[%clk 0:03:00.9]} 1... Nf6 {[%clk 0:02:58.3]} 2. c4 {[%clk 0:03:01]} 2...
e6 {[%clk 0:02:55.3]} 3. Nf3 {[%clk 0:03:00.4]} 3... c5 {[%clk 0:02:43.7]} 4. d5
{[%clk 0:02:59.8]} 4... exd5 {[%clk 0:02:43.2]} 5. cxd5 {[%clk 0:03:00.7]} 5...
d6 {[%clk 0:02:44.1]} 6. Nc3 {[%clk 0:03:00.5]} 6... g6 {[%clk 0:02:44.1]} 7.
Bf4 {[%clk 0:03:00.6]} 7... a6 {[%clk 0:02:43.4]} 8. e4 {[%clk 0:02:59]} 8...
Bg4 {[%clk 0:02:11.7]} 9. Be2 {[%clk 0:02:49.4]} 9... Bxf3 {[%clk 0:02:10.3]}
10. Bxf3 {[%clk 0:02:49.1]} 10... Nbd7 {[%clk 0:02:11.2]} 11. O-O {[%clk
0:02:46.4]} 11... Qe7 {[%clk 0:01:59.8]} 12. Qa4 {[%clk 0:02:26.6]} 12... Bg7
{[%clk 0:01:51.7]} 13. Qa5 {[%clk 0:02:15.6]} 13... Ne5 {[%clk 0:01:42.4]} 14.
Be2 {[%clk 0:02:10.2]} 14... O-O {[%clk 0:01:41]} 15. Rfe1 {[%clk 0:02:04.5]}
15... b5 {[%clk 0:01:40.1]} 16. a3 {[%clk 0:01:52]} 16... Rfe8 {[%clk
0:01:24.4]} 17. Rad1 {[%clk 0:01:45.7]} 17... h6 {[%clk 0:01:01.5]} 18. h3
{[%clk 0:01:45.3]} 18... g5 {[%clk 0:01:00.6]} 19. Bg3 {[%clk 0:01:44.4]} 19...
Ng6 {[%clk 0:00:58.8]} 20. Bf1 {[%clk 0:01:38.9]} 20... Nd7 {[%clk 0:00:58.5]}
21. Qc7 {[%clk 0:01:28.2]} 21... Be5 {[%clk 0:00:54.1]} 22. Bxe5 {[%clk
0:01:28.1]} 22... Ndxe5 {[%clk 0:00:53.9]} 23. Qxe7 {[%clk 0:01:27.2]} 23...
Rxe7 {[%clk 0:00:54.1]} 24. Rc1 {[%clk 0:01:25.4]} 24... Nf4 {[%clk 0:00:50.7]}
25. Red1 {[%clk 0:01:23.8]} 25... c4 {[%clk 0:00:47.1]} 26. Rb1 {[%clk
0:01:19.7]} 26... Rc8 {[%clk 0:00:45]} 27. Na2 {[%clk 0:01:15.6]} 27... Ned3
{[%clk 0:00:43.7]} 28. Bxd3 {[%clk 0:01:12.6]} 28... Nxd3 {[%clk 0:00:43.7]} 29.
f3 {[%clk 0:01:10.8]} 29... f5 {[%clk 0:00:42.7]} 30. Nb4 {[%clk 0:00:53.5]}
30... Nxb4 {[%clk 0:00:41.5]} 31. axb4 {[%clk 0:00:54.4]} 31... fxe4 {[%clk
0:00:42.3]} 32. fxe4 {[%clk 0:00:53.8]} 32... Rxe4 {[%clk 0:00:41.9]} 33. Ra1
{[%clk 0:00:54.2]} 33... Re2 {[%clk 0:00:18.7]} 34. Rxa6 {[%clk 0:00:52.8]}
34... Rxb2 {[%clk 0:00:18.8]} 35. Rxd6 {[%clk 0:00:53]} 35... c3 {[%clk
0:00:19.1]} 36. Rg6+ {[%clk 0:00:18.2]} 36... Kh7 {[%clk 0:00:19.1]} 37. Re6
{[%clk 0:00:16.9]} 37... c2 {[%clk 0:00:19.3]} 38. Rc1 {[%clk 0:00:17.2]} 38...
Rxb4 {[%clk 0:00:16.1]} 39. Kf2 {[%clk 0:00:17.5]} 39... Rb1 {[%clk 0:00:16]}
40. Ree1 {[%clk 0:00:17.4]} 40... Rxc1 {[%clk 0:00:16.3]} 41. Rxc1 {[%clk
0:00:18.3]} 41... b4 {[%clk 0:00:17.1]} 42. Ke3 {[%clk 0:00:16.8]} 42... b3
{[%clk 0:00:16.6]} 43. Kd2 {[%clk 0:00:17.2]} 43... Rc5 {[%clk 0:00:15.2]} 44.
d6 {[%clk 0:00:17]} 44... Rd5+ {[%clk 0:00:15.4]} 45. Kc3 {[%clk 0:00:17.2]}
45... Rxd6 {[%clk 0:00:08.7]} 46. Kxb3 {[%clk 0:00:17.4]} 46... Kg6 {[%clk
0:00:05.4]} 47. Rxc2 {[%clk 0:00:17.9]} 47... Kh5 {[%clk 0:00:05.8]} 48. Rc4
{[%clk 0:00:17.3]} 48... Rd3+ {[%clk 0:00:06.1]} 49. Kb4 {[%clk 0:00:14]} 49...
Rg3 {[%clk 0:00:06.4]} 50. Rc2 {[%clk 0:00:14.1]} 50... Re3 {[%clk 0:00:06.7]}
51. Kc4 {[%clk 0:00:14.1]} 51... Kh4 {[%clk 0:00:07.3]} 52. Kd4 {[%clk
0:00:14.5]} 52... Ra3 {[%clk 0:00:07.2]} 53. Ke4 {[%clk 0:00:13.8]} 53... Kg3
{[%clk 0:00:07.5]} 54. Rc6 {[%clk 0:00:13.9]} 54... h5 {[%clk 0:00:07.7]} 55.
Rh6 {[%clk 0:00:13]} 55... Ra4+ {[%clk 0:00:05.8]} 56. Kf5 {[%clk 0:00:12.8]}
56... Ra5+ {[%clk 0:00:06.3]} 57. Kg6 {[%clk 0:00:12.7]} 57... h4 {[%clk
0:00:06.8]} 58. Rh8 {[%clk 0:00:08.3]} 58... Kxg2 {[%clk 0:00:07.1]} 59. Rc8
{[%clk 0:00:08.1]} 59... Kxh3 {[%clk 0:00:07.5]} 60. Rc3+ {[%clk 0:00:08.1]}
60... Kg2 {[%clk 0:00:07.8]} 61. Kh5 {[%clk 0:00:08.3]} 61... h3 {[%clk
0:00:08.1]} 62. Rc2+ {[%clk 0:00:07]} 62... Kg3 {[%clk 0:00:08.4]} 63. Rc3+
{[%clk 0:00:07.5]} 63... Kg2 {[%clk 0:00:08.7]} 64. Rc2+ {[%clk 0:00:07.9]}
64... Kf1 {[%clk 0:00:08.4]} 65. Rc1+ {[%clk 0:00:08]} 65... Ke2 {[%clk
0:00:07.5]} 66. Kg4 {[%clk 0:00:08.4]} 66... h2 {[%clk 0:00:07]} 67. Rc2+ {[%clk
0:00:08.2]} 67... Ke3 {[%clk 0:00:05.8]} 68. Rxh2 {[%clk 0:00:09.1]} 68... Ke4
{[%clk 0:00:05.8]} 69. Rh5 {[%clk 0:00:09.3]} 69... Ra1 {[%clk 0:00:04.6]} 70.
Rxg5 {[%clk 0:00:09.8]} 70... Rg1+ {[%clk 0:00:04.7]} 71. Kh5 {[%clk 0:00:10.2]}
71... Rxg5+ {[%clk 0:00:04]} 72. Kxg5 {[%clk 0:00:11.1]} 1/2-1/2

[Event "*** SCC Grand Prix: Titled Tuesday Blitz"]
[Site "Chess.com"]
[Date "2020.10.06"]
[Round "3"]
[White "googlegoom"]
[Black "MFBerna"]
[Result "1/2-1/2"]
[WhiteElo "2416"]
[BlackElo "2291"]
[TimeControl "180+1"]
[EndTime "10:29:13 PDT"]
[Termination "Game drawn - insufficient material"]

1. Nf3 {[%clk 0:03:00.9]} 1... c5 {[%clk 0:02:59.9]} 2. b3 {[%clk 0:03:01.1]}
2... Nf6 {[%clk 0:02:58.3]} 3. Bb2 {[%clk 0:03:01.6]} 3... e6 {[%clk 0:02:56.5]}
4. e3 {[%clk 0:03:02.1]} 4... Be7 {[%clk 0:02:55.3]} 5. Be2 {[%clk 0:03:02.6]}
5... Nc6 {[%clk 0:02:55]} 6. O-O {[%clk 0:03:03.3]} 6... O-O {[%clk 0:02:54.5]}
7. d4 {[%clk 0:03:04]} 7... b6 {[%clk 0:02:53.8]} 8. Nbd2 {[%clk 0:03:04.5]}
8... Bb7 {[%clk 0:02:53.8]} 9. c4 {[%clk 0:03:05.2]} 9... d5 {[%clk 0:02:52.1]}
10. Rc1 {[%clk 0:03:05.7]} 10... Rc8 {[%clk 0:02:51.7]} 11. dxc5 {[%clk
0:03:06.3]} 11... Bxc5 {[%clk 0:02:48]} 12. Qc2 {[%clk 0:03:07.2]} 12... Qe7
{[%clk 0:02:38.8]} 13. Qb1 {[%clk 0:03:06]} 13... Rfd8 {[%clk 0:02:36.9]} 14.
Rfd1 {[%clk 0:03:04.8]} 14... d4 {[%clk 0:02:32.5]} 15. exd4 {[%clk 0:02:59.9]}
15... Nxd4 {[%clk 0:02:33.4]} 16. Nxd4 {[%clk 0:03:00.8]} 16... Bxd4 {[%clk
0:02:34.1]} 17. Bxd4 {[%clk 0:03:01.5]} 17... Rxd4 {[%clk 0:02:35]} 18. Bf3
{[%clk 0:03:02]} 18... Rcd8 {[%clk 0:02:34]} 19. Bxb7 {[%clk 0:03:00.5]} 19...
Qxb7 {[%clk 0:02:29.8]} 20. Nf3 {[%clk 0:03:00.6]} 20... R4d6 {[%clk 0:02:14.7]}
21. Rxd6 {[%clk 0:02:57.2]} 21... Rxd6 {[%clk 0:02:15.6]} 22. Rd1 {[%clk
0:02:57.9]} 22... Qd7 {[%clk 0:02:11.7]} 23. Rxd6 {[%clk 0:02:55.9]} 23... Qxd6
{[%clk 0:02:12.6]} 24. h3 {[%clk 0:02:52.7]} 24... Nd7 {[%clk 0:02:11.3]} 25.
Qc2 {[%clk 0:02:51.5]} 25... g6 {[%clk 0:02:05.4]} 26. Qd2 {[%clk 0:02:51.5]}
26... Qxd2 {[%clk 0:02:03.8]} 27. Nxd2 {[%clk 0:02:52.4]} 27... Kf8 {[%clk
0:02:00.3]} 28. Kf1 {[%clk 0:02:46.5]} 28... Ke7 {[%clk 0:02:00.6]} 29. Ke2
{[%clk 0:02:47.1]} 29... f5 {[%clk 0:01:57.7]} 30. Kd3 {[%clk 0:02:45.5]} 30...
Kd6 {[%clk 0:01:57.8]} 31. b4 {[%clk 0:02:43.4]} 31... e5 {[%clk 0:01:56.7]} 32.
Nb3 {[%clk 0:02:41.8]} 32... Nf6 {[%clk 0:01:48.3]} 33. c5+ {[%clk 0:02:41.7]}
33... Kd5 {[%clk 0:01:45.5]} 34. cxb6 {[%clk 0:02:40.8]} 34... axb6 {[%clk
0:01:46.4]} 35. a4 {[%clk 0:02:38.4]} 35... e4+ {[%clk 0:01:35.7]} 36. Kc3
{[%clk 0:02:34.4]} 36... f4 {[%clk 0:01:34.1]} 37. a5 {[%clk 0:02:33.4]} 37...
bxa5 {[%clk 0:01:34.2]} 38. bxa5 {[%clk 0:02:33.8]} 38... Nd7 {[%clk 0:01:32.6]}
39. a6 {[%clk 0:02:32]} 39... g5 {[%clk 0:01:13.8]} 40. a7 {[%clk 0:02:26.2]}
40... Nb6 {[%clk 0:01:13.5]} 41. Na5 {[%clk 0:02:24.1]} 41... h5 {[%clk
0:00:59.4]} 42. Nc4 {[%clk 0:02:21]} 42... Na8 {[%clk 0:00:59.9]} 43. Kb4 {[%clk
0:02:00.6]} 43... Kc6 {[%clk 0:00:43.3]} 44. Ka5 {[%clk 0:01:38.4]} 44... g4
{[%clk 0:00:26.9]} 45. hxg4 {[%clk 0:01:33.5]} 45... hxg4 {[%clk 0:00:27.8]} 46.
Ne5+ {[%clk 0:01:32.8]} 46... Kb7 {[%clk 0:00:23.6]} 47. Nxg4 {[%clk 0:01:31.1]}
47... Kxa7 {[%clk 0:00:21.3]} 48. Ne5 {[%clk 0:01:22.8]} 48... Kb7 {[%clk
0:00:18.8]} 49. Kb5 {[%clk 0:01:21.3]} 49... Kc7 {[%clk 0:00:15.8]} 50. Kc5
{[%clk 0:01:20.9]} 50... e3 {[%clk 0:00:15.9]} 51. f3 {[%clk 0:01:21.3]} 51...
Nb6 {[%clk 0:00:14.2]} 52. Kd4 {[%clk 0:01:19.4]} 52... Kd6 {[%clk 0:00:12.2]}
53. Nd3 {[%clk 0:01:18]} 53... Nd5 {[%clk 0:00:11.8]} 54. Ke4 {[%clk 0:01:12]}
54... e2 {[%clk 0:00:08]} 55. Ne1 {[%clk 0:01:04.2]} 55... Ke6 {[%clk
0:00:08.2]} 56. Kd3 {[%clk 0:01:04.4]} 56... Kf5 {[%clk 0:00:05.2]} 57. Kxe2
{[%clk 0:01:04.6]} 57... Nf6 {[%clk 0:00:04.5]} 58. Kd3 {[%clk 0:01:04.3]} 58...
Nh5 {[%clk 0:00:04.5]} 59. Kd4 {[%clk 0:01:02.5]} 59... Ng3 {[%clk 0:00:04.5]}
60. Kd3 {[%clk 0:00:52.8]} 60... Nf1 {[%clk 0:00:05.4]} 61. Nc2 {[%clk 0:00:49]}
61... Ng3 {[%clk 0:00:06.3]} 62. Nd4+ {[%clk 0:00:46.5]} 62... Ke5 {[%clk
0:00:06.1]} 63. Nc6+ {[%clk 0:00:44.3]} 63... Kf5 {[%clk 0:00:06.2]} 64. Ne7+
{[%clk 0:00:39.2]} 64... Ke5 {[%clk 0:00:05.8]} 65. Nc6+ {[%clk 0:00:36.8]}
65... Kf5 {[%clk 0:00:05.5]} 66. Kd2 {[%clk 0:00:36.5]} 66... Nf1+ {[%clk
0:00:05.6]} 67. Ke2 {[%clk 0:00:36.2]} 67... Ne3 {[%clk 0:00:06.5]} 68. g4+
{[%clk 0:00:27.6]} 68... Nxg4 {[%clk 0:00:06.3]} 69. Nd4+ {[%clk 0:00:25.6]}
69... Kg5 {[%clk 0:00:04.4]} 70. Ne6+ {[%clk 0:00:18.7]} 70... Kf5 {[%clk
0:00:04.7]} 71. Ng7+ {[%clk 0:00:19]} 71... Kg5 {[%clk 0:00:04.8]} 72. Ne6+
{[%clk 0:00:11.8]} 72... Kf5 {[%clk 0:00:04.8]} 73. Nd4+ {[%clk 0:00:10.6]}
73... Kg5 {[%clk 0:00:04.9]} 74. Kd3 {[%clk 0:00:09]} 74... Nh2 {[%clk 0:00:05]}
75. Ke4 {[%clk 0:00:08.5]} 75... Nxf3 {[%clk 0:00:05.9]} 76. Nxf3+ {[%clk
0:00:09.2]} 76... Kf6 {[%clk 0:00:04.6]} 77. Kxf4 {[%clk 0:00:09.2]} 1/2-1/2

[Event "*** SCC Grand Prix: Titled Tuesday Blitz"]
[Site "Chess.com"]
[Date "2020.10.06"]
[Round "3"]
[White "saraswathii"]
[Black "besarquis"]
[Result "1-0"]
[WhiteElo "2375"]
[BlackElo "2150"]
[TimeControl "180+1"]
[EndTime "10:29:13 PDT"]
[Termination "saraswathii won on time"]

1. e4 {[%clk 0:03:00.9]} 1... e5 {[%clk 0:02:59.6]} 2. d3 {[%clk 0:03:00]} 2...
Nf6 {[%clk 0:02:56.9]} 3. Nf3 {[%clk 0:02:58.2]} 3... Nc6 {[%clk 0:02:55.3]} 4.
g3 {[%clk 0:02:43.6]} 4... Bc5 {[%clk 0:02:53.9]} 5. Bg2 {[%clk 0:02:39]} 5...
d6 {[%clk 0:02:54]} 6. O-O {[%clk 0:02:26.9]} 6... Bg4 {[%clk 0:02:46.1]} 7. c3
{[%clk 0:02:25.4]} 7... Bb6 {[%clk 0:02:44.3]} 8. Nbd2 {[%clk 0:02:14.8]} 8...
a6 {[%clk 0:02:35.6]} 9. h3 {[%clk 0:02:06.9]} 9... Bh5 {[%clk 0:02:34]} 10. Nc4
{[%clk 0:02:00.6]} 10... Ba7 {[%clk 0:02:33.3]} 11. Be3 {[%clk 0:01:51.9]} 11...
h6 {[%clk 0:02:30.1]} 12. Bxa7 {[%clk 0:01:35.1]} 12... Rxa7 {[%clk 0:02:29.7]}
13. Ne3 {[%clk 0:01:32.8]} 13... Ne7 {[%clk 0:02:27.5]} 14. g4 {[%clk
0:01:28.1]} 14... Bg6 {[%clk 0:02:26.9]} 15. Nf5 {[%clk 0:01:22.6]} 15... Nxf5
{[%clk 0:02:23.1]} 16. exf5 {[%clk 0:01:21.4]} 16... Bh7 {[%clk 0:02:22.5]} 17.
Re1 {[%clk 0:01:20.6]} 17... O-O {[%clk 0:02:08.2]} 18. Nd2 {[%clk 0:01:14.9]}
18... c6 {[%clk 0:02:04.6]} 19. Nc4 {[%clk 0:01:09.2]} 19... Re8 {[%clk
0:02:01.8]} 20. Qd2 {[%clk 0:00:57.4]} 20... b5 {[%clk 0:01:51.5]} 21. Na3
{[%clk 0:00:56.3]} 21... d5 {[%clk 0:01:39.3]} 22. Re3 {[%clk 0:00:44.1]} 22...
Rae7 {[%clk 0:01:37.6]} 23. Rae1 {[%clk 0:00:43]} 23... Nd7 {[%clk 0:01:36.7]}
24. Nc2 {[%clk 0:00:41.7]} 24... Nc5 {[%clk 0:01:22.2]} 25. Qe2 {[%clk
0:00:29.5]} 25... Na4 {[%clk 0:01:11]} 26. Nb4 {[%clk 0:00:28]} 26... Qd6 {[%clk
0:00:59.8]} 27. Qc2 {[%clk 0:00:22.5]} 27... Nb6 {[%clk 0:00:58]} 28. Qe2 {[%clk
0:00:15.9]} 28... a5 {[%clk 0:00:54.3]} 29. Nc2 {[%clk 0:00:13]} 29... Na4
{[%clk 0:00:51.9]} 30. Na3 {[%clk 0:00:08.7]} 30... Qf6 {[%clk 0:00:47.1]} 31.
Qc2 {[%clk 0:00:05.8]} 31... Nc5 {[%clk 0:00:41.2]} 32. b4 {[%clk 0:00:04.9]}
32... axb4 {[%clk 0:00:38.5]} 33. cxb4 {[%clk 0:00:05.8]} 33... Nb7 {[%clk
0:00:36]} 34. Qb2 {[%clk 0:00:04.9]} 34... h5 {[%clk 0:00:27.5]} 35. Nc2 {[%clk
0:00:01.8]} 35... hxg4 {[%clk 0:00:26.6]} 36. hxg4 {[%clk 0:00:02.7]} 36... Nd6
{[%clk 0:00:23.7]} 37. Rg3 {[%clk 0:00:03.1]} 37... Qg5 {[%clk 0:00:22.3]} 38.
Ne3 {[%clk 0:00:02.1]} 38... f6 {[%clk 0:00:20.6]} 39. Qc2 {[%clk 0:00:02.3]}
39... Rc8 {[%clk 0:00:18.3]} 40. Nf1 {[%clk 0:00:02.8]} 40... g6 {[%clk
0:00:17.2]} 41. Qc5 {[%clk 0:00:03.2]} 41... Rd7 {[%clk 0:00:15.2]} 42. fxg6
{[%clk 0:00:03.7]} 42... Bxg6 {[%clk 0:00:15]} 43. Nh2 {[%clk 0:00:01.9]} 43...
Bf7 {[%clk 0:00:13.3]} 44. Nf3 {[%clk 0:00:01.9]} 44... Qg7 {[%clk 0:00:13.4]}
45. g5 {[%clk 0:00:02.5]} 45... f5 {[%clk 0:00:11.5]} 46. Nxe5 {[%clk
0:00:02.1]} 46... Nb7 {[%clk 0:00:11.4]} 47. Qb6 {[%clk 0:00:01.6]} 47... f4
{[%clk 0:00:11]} 48. Nxd7 {[%clk 0:00:01.4]} 48... fxg3 {[%clk 0:00:10.6]} 49.
Qxb7 {[%clk 0:00:02.1]} 49... gxf2+ {[%clk 0:00:10.4]} 50. Kxf2 {[%clk 0:00:03]}
50... Qd4+ {[%clk 0:00:10.4]} 51. Kf1 {[%clk 0:00:03.4]} 51... Qxd3+ {[%clk
0:00:08.7]} 52. Kg1 {[%clk 0:00:03.8]} 52... Qd4+ {[%clk 0:00:09]} 53. Kf1
{[%clk 0:00:02.5]} 53... Qf4+ {[%clk 0:00:08.9]} 54. Kg1 {[%clk 0:00:02.5]}
54... Qd4+ {[%clk 0:00:08.2]} 55. Kf1 {[%clk 0:00:03.1]} 55... Qf4+ {[%clk
0:00:07.7]} 56. Ke2 {[%clk 0:00:03.7]} 56... Qc4+ {[%clk 0:00:06.9]} 57. Kd1
{[%clk 0:00:03.7]} 57... Qd3+ {[%clk 0:00:06.9]} 58. Kc1 {[%clk 0:00:04.1]}
58... Qc3+ {[%clk 0:00:07]} 59. Kd1 {[%clk 0:00:04.6]} 59... Qd3+ {[%clk
0:00:06.4]} 60. Kc1 {[%clk 0:00:05.1]} 60... Qc3+ {[%clk 0:00:06.4]} 61. Kd1
{[%clk 0:00:04.5]} 61... Bh5+ {[%clk 0:00:05.6]} 62. Re2 {[%clk 0:00:04]} 62...
Qd3+ {[%clk 0:00:05.7]} 63. Kc1 {[%clk 0:00:04.2]} 63... Qc3+ {[%clk 0:00:06]}
64. Rc2 {[%clk 0:00:03.9]} 64... Qa1+ {[%clk 0:00:06]} 65. Kd2 {[%clk
0:00:04.1]} 65... Qd1+ {[%clk 0:00:06.3]} 66. Kc3 {[%clk 0:00:04]} 66... d4+
{[%clk 0:00:05.3]} 67. Kb2 {[%clk 0:00:03.8]} 67... d3 {[%clk 0:00:03.9]} 68.
Qxc8+ {[%clk 0:00:03.5]} 68... Kh7 {[%clk 0:00:02.6]} 69. Nf6+ {[%clk
0:00:02.8]} 69... Kg6 {[%clk 0:00:02.4]} 70. Be4+ {[%clk 0:00:03.1]} 70... Kxg5
{[%clk 0:00:02]} 71. Qf5+ {[%clk 0:00:03.7]} 71... Kh4 {[%clk 0:00:01.5]} 72.
Qxh5+ {[%clk 0:00:03.9]} 72... Kg3 {[%clk 0:00:01.5]} 73. Qxd1 {[%clk
0:00:03.3]} 73... dxc2 {[%clk 0:00:01.9]} 74. Qxc2 {[%clk 0:00:04.2]} 1-0